fUSD/lending_fUSD_20260404
["ID","MTS","AMOUNT","RATE_DAILY","PERIOD"]
[419690349,1775292637763,-501.61460773,0.00011601,2]
[419690350,1775292637818,-762.02553012,0.00011601,2]
[419690392,1775292639764,-2852.19657638,0.00011601,2]
[419690393,1775292639774,-418.82489194,0.00011601,2]
[419690394,1775292639818,-482.79510806,0.00011601,2]
[419690395,1775292639831,-173678.47735562,0.00011601,2]
[419690396,1775292639840,-722.56008639,0.00011693,2]
[419690397,1775292639849,-150.99,0.00011696,2]
[419690398,1775292639859,-150.99,0.00011696,2]
[419690399,1775292639868,-4855.7,0.00011697,2]
[419690400,1775292639877,-299.99,0.00011697,2]
[419690401,1775292639887,-1000.0,0.000117,2]
[419690402,1775292639898,-500.0,0.00011788,2]
[419690403,1775292639907,-500.0,0.00011788,2]
[419690404,1775292639917,-500.0,0.00011788,2]
[419690405,1775292639927,-500.0,0.00011788,2]
[419690406,1775292639936,-433.98764255,0.00011788,2]
[419690407,1775292639947,-151.0,0.00011788,2]
[419690408,1775292639957,-151.0,0.00011788,2]
[419690409,1775292639966,-151.0,0.00011788,2]
[419690410,1775292639975,-151.0,0.00011788,2]
[419690411,1775292639984,-151.0,0.00011788,2]
[419690412,1775292639994,-151.0,0.00011788,2]
[419690413,1775292640003,-151.0,0.00011788,2]
[419690414,1775292640012,-151.0,0.00011788,2]
[419690415,1775292640022,-151.0,0.00011788,2]
[419690416,1775292640031,-151.0,0.00011788,2]
[419690417,1775292640040,-151.0,0.00011788,2]
[419690418,1775292640049,-155.553,0.00011797,2]
[419690419,1775292640059,-500.0,0.00011921,2]
[419690420,1775292640068,-325.0123115,0.00011921,2]
[419690421,1775292640078,-161.50936629,0.00011921,2]
[419690422,1775292640087,-1718.3073884,0.00011921,2]
[419690423,1775292640096,-1718.3073884,0.00011921,2]
[419690424,1775292640106,-209.12357648,0.00011921,2]
[419690425,1775292640115,-1718.3073884,0.00011921,2]
[419690426,1775292640124,-1718.3073884,0.00011921,2]
[419690427,1775292640134,-1718.3073884,0.00011921,2]
[419690428,1775292640143,-1718.3073884,0.00011921,2]
[419690429,1775292640153,-1718.3073884,0.00011921,2]
[419690430,1775292640162,-1718.3073884,0.00011921,2]
[419690431,1775292640172,-1718.3073884,0.00011921,2]
[419690432,1775292640180,-1718.3073884,0.00011921,2]
[419690433,1775292640190,-1718.3073884,0.00011921,2]
[419690434,1775292640199,-1718.3073884,0.00011921,2]
[419690435,1775292640208,-1718.3073884,0.00011921,2]
[419690436,1775292640217,-1718.3073884,0.00011921,2]
[419690437,1775292640227,-1718.3073884,0.00011921,2]
[419690438,1775292640236,-1718.3073884,0.00011921,2]
[419690439,1775292640245,-1718.3073884,0.00011921,2]
[419690440,1775292640254,-1718.3073884,0.00011921,2]
[419690441,1775292640263,-1718.3073884,0.00011921,2]
[419690442,1775292640272,-1718.3073884,0.00011921,2]
[419690443,1775292640281,-1718.3073884,0.00011921,2]
[419690444,1775292640290,-1718.3073884,0.00011921,2]
[419690445,1775292640300,-1718.3073884,0.00011921,2]
[419690446,1775292640309,-1718.3073884,0.00011921,2]
[419690447,1775292640318,-1718.3073884,0.00011921,2]
[419690448,1775292640327,-1718.3073884,0.00011921,2]
[419690449,1775292640336,-1718.3073884,0.00011921,2]
[419690450,1775292640345,-1718.3073884,0.00011921,2]
[419690451,1775292640354,-1718.3073884,0.00011921,2]
[419690452,1775292640363,-1718.3073884,0.00011921,2]
[419690453,1775292640372,-1718.3073884,0.00011921,2]
[419690454,1775292640382,-1718.3073884,0.00011921,2]
[419690455,1775292640391,-1718.3073884,0.00011921,2]
[419690456,1775292640400,-1718.3073884,0.00011921,2]
[419690457,1775292640409,-1718.3073884,0.00011921,2]
[419690458,1775292640418,-1718.3073884,0.00011921,2]
[419690459,1775292640428,-1718.3073884,0.00011921,2]
[419690460,1775292640437,-1718.3073884,0.00011921,2]
[419690461,1775292640446,-1718.3073884,0.00011921,2]
[419690462,1775292640455,-1718.3073884,0.00011921,2]
[419690463,1775292640465,-1718.3073884,0.00011921,2]
[419690464,1775292640474,-1718.3073884,0.00011921,2]
[419690465,1775292640484,-1718.3073884,0.00011921,2]
[419690466,1775292640493,-1718.3073884,0.00011921,2]
[419690467,1775292640501,-1718.3073884,0.00011921,2]
[419690468,1775292640511,-1718.3073884,0.00011921,2]
[419690469,1775292640520,-1718.3073884,0.00011921,2]
[419690470,1775292640529,-1718.3073884,0.00011921,2]
[419690471,1775292640538,-1718.3073884,0.00011921,2]
[419690472,1775292640547,-1718.3073884,0.00011921,2]
[419690473,1775292640557,-1718.3073884,0.00011921,2]
[419690474,1775292640567,-1718.3073884,0.00011921,2]
[419690475,1775292640576,-1718.3073884,0.00011921,2]
[419690476,1775292640585,-125998.88,0.00011924,2]
[419690477,1775292640594,-5577.45277285,0.00012072,2]
[419690478,1775292640603,-722.56008634,0.0001216,2]
[419690479,1775292640613,-9231.95,0.00012282,2]
[419690480,1775292640622,-5577.45277285,0.0001255,2]
[419690481,1775292640632,-722.56008634,0.00012628,2]
[419690482,1775292640642,-276.0,0.0001265,2]
[419690483,1775292640652,-250.0,0.00012651,2]
[419690484,1775292640661,-600.0,0.00012651,2]
[419690485,1775292640671,-420.0,0.00012674,2]
[419690486,1775292640681,-155.0,0.00012977,2]
[419690487,1775292640691,-250.0,0.00013,2]
[419690488,1775292640701,-5577.45277285,0.00013029,2]
[419690489,1775292640713,-722.56008634,0.00013095,2]
[419690490,1775292640722,-500.0,0.00013111,2]
[419690491,1775292640732,-5577.45277285,0.00013507,2]
[419690492,1775292640742,-722.56008634,0.00013563,2]
[419690493,1775292640751,-150.0,0.00013699,2]
[419690494,1775292640760,-166.66,0.00013699,2]
[419690495,1775292640769,-1974.94062421,0.000139,2]
[419690496,1775292640780,-587.0,0.0001392,2]
[419690497,1775292640792,-166.66,0.00013922,2]
[419690498,1775292640801,-5577.45277285,0.00013986,2]
[419690499,1775292640811,-722.56008634,0.0001403,2]
[419690500,1775292640821,-1852.42,0.00014097,2]
[419690501,1775292640832,-150.0,0.00014099,2]
[419690502,1775292640841,-200.0,0.00014114,2]
[419690503,1775292640851,-166.66,0.00014146,2]
[419690504,1775292640860,-155.0,0.00014156,2]
[419690505,1775292640870,-166.66,0.00014176,2]
[419690506,1775292640879,-155.14456622,0.00014219,2]
[419690507,1775292640888,-500.0,0.00014313,2]
[419690508,1775292640898,-500.0,0.00014313,2]
[419690509,1775292640908,-500.0,0.00014313,2]
[419690510,1775292640917,-500.0,0.00014313,2]
[419690511,1775292640926,-500.0,0.00014313,2]
[419690512,1775292640936,-500.0,0.00014313,2]
[419690513,1775292640946,-500.0,0.00014313,2]
[419690514,1775292640955,-500.0,0.00014313,2]
[419690515,1775292640964,-500.0,0.00014313,2]
[419690516,1775292640974,-500.0,0.00014313,2]
[419690517,1775292640983,-500.0,0.00014313,2]
[419690518,1775292640992,-500.0,0.00014313,2]
[419690519,1775292641002,-500.0,0.00014313,2]
[419690520,1775292641012,-500.0,0.00014313,2]
[419690521,1775292641024,-500.0,0.00014313,2]
[419690522,1775292641034,-500.0,0.00014313,2]
[419690523,1775292641043,-500.0,0.00014313,2]
[419690524,1775292641053,-500.0,0.00014313,2]
[419690525,1775292641062,-500.0,0.00014313,2]
[419690526,1775292641072,-500.0,0.00014313,2]
[419690527,1775292641080,-500.0,0.00014313,2]
[419690528,1775292641091,-500.0,0.00014313,2]
[419690529,1775292641100,-500.0,0.00014313,2]
[419690530,1775292641110,-174.61919141,0.00014313,2]
[419690531,1775292641120,-200.0,0.00014352,2]
[419690532,1775292641129,-500.0,0.00014368,2]
[419690533,1775292641138,-166.66,0.00014369,2]
[419690534,1775292641149,-156.6731617,0.000144,2]
[419690535,1775292641158,-152.61128617,0.000144,2]
[419690536,1775292641169,-153.32332907,0.000144,2]
[419690537,1775292641178,-152.90460209,0.000144,2]
[419690538,1775292641187,-256.52934676,0.000144,2]
[419690539,1775292641197,-151.90220774,0.000144,2]
[419690540,1775292641206,-150.0,0.000144,2]
[419690541,1775292641215,-150.0,0.000144,2]
[419690542,1775292641224,-287.70807985,0.000144,2]
[419690543,1775292641233,-150.0,0.000144,2]
[419690544,1775292641242,-207.04675366,0.000144,2]
[419690545,1775292641251,-153.45263565,0.000144,2]
[419690546,1775292641260,-500.0,0.00014423,2]
[419690547,1775292641270,-5577.45277285,0.00014464,2]
[419690548,1775292641279,-500.0,0.00014478,2]
[419690549,1775292641288,-722.56008634,0.00014498,2]
[419690550,1775292641297,-500.0,0.00014533,2]
[419690551,1775292641306,-150.0,0.00014578,2]
[419690552,1775292641316,-500.0,0.00014588,2]
[419690553,1775292641325,-166.66,0.00014593,2]
[419690554,1775292641334,-500.0,0.00014643,2]
[419690555,1775292641344,-166.66,0.00014644,2]
[419690556,1775292641353,-500.0,0.00014698,2]
[419690557,1775292641362,-500.0,0.00014705,2]
[419690558,1775292641371,-500.0,0.00014753,2]
[419690559,1775292641380,-150.0,0.00014756,2]
[419690560,1775292641389,-328.0,0.00014795,2]
[419690561,1775292641398,-500.0,0.00014808,2]
[419690562,1775292641407,-166.66,0.00014816,2]
[419690563,1775292641416,-181.08010149,0.00014861,2]
[419690564,1775292641426,-500.0,0.00014863,2]
[419690565,1775292641435,-150.0,0.00014933,2]
[419690566,1775292641443,-150.0,0.00014933,2]
[419690567,1775292641453,-5577.45277285,0.00014943,2]
[419690568,1775292641462,-722.56008634,0.00014965,2]
[419690569,1775292641471,-300.0,0.00015,2]
[419690570,1775292641481,-788.23816,0.000151,2]
[419690571,1775292641490,-150.0,0.00015111,2]
[419690572,1775292641499,-166.66,0.00015112,2]
[419690573,1775292641509,-4361.13,0.00015128,2]
[419690574,1775292641518,-10000.0,0.00015205,2]
[419690575,1775292641528,-823.0,0.00015288,2]
[419690576,1775292641537,-150.0,0.00015289,2]
[419690577,1775292641546,-341.0,0.00015291,2]
[419690578,1775292641555,-200.0,0.000153,5]
[419690579,1775292641565,-6752.32,0.00015352,2]
[419690580,1775292641574,-370.983,0.00015352,2]
[419690581,1775292641583,-341.0,0.00015366,2]
[419690582,1775292641592,-400.0,0.000154,5]
[419690583,1775292641602,-187.78006525,0.00015409,2]
[419690584,1775292641611,-5577.45277285,0.00015421,2]
[419690585,1775292641621,-722.56008634,0.00015433,2]
[419690586,1775292641631,-150.0,0.00015467,2]
[419690587,1775292641640,-150.0,0.00015467,2]
[419690588,1775292641650,-600.0,0.000155,5]
[419690589,1775292641659,-341.0,0.00015517,2]
[419690590,1775292641669,-500.0,0.00015545,2]
[419690591,1775292641678,-2824.0,0.00015559,5]
[419690592,1775292641687,-341.0,0.0001556,2]
[419690593,1775292641697,-166.66,0.0001558,2]
[419690594,1775292641706,-500.0,0.00015588,4]
[419690595,1775292641716,-900.0,0.000156,5]
[419690596,1775292641725,-150.0,0.00015644,2]
[419690597,1775292641735,-341.0,0.00015668,2]
[419690598,1775292641744,-1100.0,0.000157,5]
[419690599,1775292641754,-200.0,0.000158,5]
[419690600,1775292641763,-150.0,0.00015822,2]
[419690601,1775292641772,-466.97617,0.0001584,2]
[419690602,1775292641782,-466.97618,0.0001584,2]
[419690603,1775292641791,-466.97618,0.0001585,2]
[419690604,1775292641800,-200.0,0.00015871,2]
[419690605,1775292641810,-200.0,0.00015872,2]
[419690606,1775292641819,-500.0,0.0001589,2]
[419690607,1775292641829,-500.0,0.0001589,2]
[419690608,1775292641838,-500.0,0.0001589,2]
[419690609,1775292641847,-500.0,0.0001589,2]
[419690610,1775292641857,-500.0,0.0001589,2]
[419690611,1775292641866,-500.0,0.0001589,2]
[419690612,1775292641876,-500.0,0.0001589,2]
[419690613,1775292641887,-500.0,0.0001589,2]
[419690614,1775292641896,-5000.0,0.00015894,2]
[419690615,1775292641906,-508.71327296,0.000159,2]
[419690616,1775292641915,-10000.0,0.000159,2]
[419690617,1775292641925,-25559.75281378,0.000159,2]
[419690618,1775292641934,-722.56008634,0.000159,2]
[419690619,1775292641943,-200.0,0.000159,5]
[419690620,1775292641953,-5577.45277285,0.000159,2]
[419690621,1775292641963,-520.97455427,0.000159,2]
[419690622,1775292641972,-163.10994461,0.000159,2]
[419690623,1775292641982,-151.12106257,0.000159,2]
[419690624,1775292641991,-1889.15413697,0.000159,2]
[419690625,1775292642000,-1933.51006069,0.000159,2]
[419690626,1775292642010,-194.72792766,0.00015957,2]
[419690627,1775292642019,-248.0,0.00015962,2]
[419690628,1775292642028,-265.23387832,0.00015973,2]
[419690629,1775292642037,-500.0,0.00015973,2]
[419690630,1775292642047,-500.0,0.00015973,2]
[419690631,1775292642056,-222.84978492,0.00015979,2]
[419690632,1775292642066,-187.54722212,0.00015984,2]
[419690633,1775292642075,-154.67856975,0.00015984,2]
[419690634,1775292642084,-215.2940998,0.00015984,2]
[419690635,1775292642093,-171.46316008,0.00015984,2]
[419690636,1775292642103,-151.94158758,0.00015984,2]
[419690637,1775292642113,-226.44024945,0.0001599,2]
[419690638,1775292642123,-226.44024945,0.0001599,2]
[419690639,1775292642132,-226.44024945,0.0001599,2]
[419690640,1775292642141,-155942.2523016,0.00015993,2]
[419690641,1775292642151,-1433.5428797,0.00015993,2]
[419690642,1775292642160,-193489.1930426,0.00015994,2]
[419690643,1775292642169,-151.0,0.00015997,2]
[419690644,1775292642178,-151.0,0.00015997,2]
[419690645,1775292642187,-1297.89044282,0.00015999,2]
[419690646,1775292642196,-666.0,0.00015999,2]
[419690647,1775292642206,-500.0,0.00015999,2]
[419690648,1775292642215,-500.0,0.00015999,2]
[419690650,1775292642224,-500.0,0.00015999,2]
[419690651,1775292642234,-500.0,0.00015999,2]
[419690652,1775292642243,-500.0,0.00015999,2]
[419690653,1775292642253,-500.0,0.00015999,2]
[419690655,1775292642262,-500.0,0.00015999,2]
[419690656,1775292642271,-500.0,0.00015999,2]
[419690658,1775292642281,-500.0,0.00015999,2]
[419690659,1775292642291,-500.0,0.00015999,2]
[419690660,1775292642299,-500.0,0.00015999,2]
[419690661,1775292642308,-500.0,0.00015999,2]
[419690662,1775292642318,-500.0,0.00015999,2]
[419690663,1775292642327,-500.0,0.00015999,2]
[419690664,1775292642337,-500.0,0.00015999,2]
[419690665,1775292642346,-500.0,0.00015999,2]
[419690666,1775292642355,-500.0,0.00015999,2]
[419690668,1775292642364,-500.0,0.00015999,2]
[419690670,1775292642374,-500.0,0.00015999,2]
[419690671,1775292642383,-500.0,0.00015999,2]
[419690672,1775292642392,-500.0,0.00015999,2]
[419690673,1775292642401,-500.0,0.00015999,2]
[419690674,1775292642411,-500.0,0.00015999,2]
[419690675,1775292642420,-500.0,0.00015999,2]
[419690676,1775292642430,-500.0,0.00015999,2]
[419690677,1775292642439,-500.0,0.00015999,2]
[419690678,1775292642448,-500.0,0.00015999,2]
[419690679,1775292642457,-500.0,0.00015999,2]
[419690680,1775292642466,-500.0,0.00015999,2]
[419690681,1775292642476,-500.0,0.00015999,2]
[419690682,1775292642486,-500.0,0.00015999,2]
[419690683,1775292642495,-500.0,0.00015999,2]
[419690684,1775292642505,-500.0,0.00015999,2]
[419690685,1775292642514,-500.0,0.00015999,2]
[419690686,1775292642523,-500.0,0.00015999,2]
[419690687,1775292642532,-500.0,0.00015999,2]
[419690688,1775292642542,-500.0,0.00015999,2]
[419690689,1775292642551,-500.0,0.00015999,2]
[419690690,1775292642560,-500.0,0.00015999,2]
[419690691,1775292642569,-500.0,0.00015999,2]
[419690692,1775292642578,-500.0,0.00015999,2]
[419690693,1775292642588,-500.0,0.00015999,2]
[419690694,1775292642597,-500.0,0.00015999,2]
[419690695,1775292642606,-520.24272845,0.00015999,2]
[419690696,1775292642616,-267.28135212,0.00015999,2]
[419690697,1775292642625,-3525.0,0.00016,5]
[419690698,1775292642635,-154.4422212,0.00016,2]
[419690699,1775292642644,-151.30611776,0.00016,2]
[419690700,1775292642654,-153.65348451,0.00016,2]
[419690701,1775292642663,-537336.84041719,0.00016,2]
[419690702,1775292642673,-4831530.55740801,0.00016,2]
[419690703,1775292642689,-4926.23470969,0.00016,2]
[419690704,1775292642704,-64789.755726,0.00016,2]
[419690707,1775292643158,-2200.39566375,0.00016,2]
[419690708,1775292643170,-2112.68772881,0.00016,2]
[419690709,1775292643182,-6476.04433623,0.00016,2]
[419690710,1775292643203,-5642.70196642,0.00016,2]
[419690712,1775292643226,-2011.69999999,0.00016,2]
[419690714,1775292645502,-1165.00275632,0.00016,2]
[419690715,1775292645515,-1244133.605,0.00016,2]
[419690716,1775292645853,-35068.7024931,0.00016,2]
[419690717,1775292645905,-1463.892,0.00016,2]
[419690718,1775292645917,-444.58999998,0.00016,2]
[419690772,1775293758877,-319.0,0.00011488,2]
[419690773,1775293758898,-600.0,0.00011488,2]
[419690774,1775293758918,-250.0,0.00011488,2]
[419690775,1775293758940,-600.0,0.00011488,2]
[419690776,1775293758961,-1378.2769303,0.00011488,2]
[419690803,1775293832037,-8199.12982767,0.000107,2]
[419690805,1775293832048,-609.8984744,0.000107,2]
[419690808,1775293832067,-85028.55464445,0.000107,2]
[419690810,1775293832076,-342.24449685,0.00011479,2]
[419690811,1775293832089,-600.0,0.00011484,2]
[419690812,1775293832098,-600.0,0.00011489,2]
[419690814,1775293832107,-250.0,0.0001149,2]
[419690815,1775293832116,-1200.0,0.00011492,2]
[419690816,1775293832126,-2291.65971276,0.00011492,2]
[419690817,1775293832135,-300.0,0.00011493,2]
[419690818,1775293832145,-300.0,0.00011493,2]
[419690819,1775293832155,-250.0,0.00011493,2]
[419690820,1775293832165,-151.0,0.00011494,2]
[419690821,1775293832175,-151.0,0.00011494,2]
[419690822,1775293832185,-151.0,0.00011494,2]
[419690823,1775293832194,-151.0,0.00011494,2]
[419690824,1775293832204,-151.0,0.00011494,2]
[419690825,1775293832213,-151.0,0.00011494,2]
[419690826,1775293832223,-151.0,0.00011494,2]
[419690827,1775293832233,-151.0,0.00011494,2]
[419690828,1775293832242,-151.0,0.00011494,2]
[419690829,1775293832252,-151.0,0.00011494,2]
[419690830,1775293832261,-151.0,0.00011494,2]
[419690831,1775293832271,-70913.3156,0.00011501,2]
[419690832,1775293832280,-1000.0,0.00011501,2]
[419690833,1775293832290,-3480.2889,0.00011501,2]
[419690834,1775293832299,-2857.44,0.00011507,2]
[419690835,1775293832308,-9999.99,0.00012087,2]
[419690836,1775293832318,-8167.06,0.00012087,2]
[419690837,1775293832328,-2000.0,0.00012155,2]
[419690838,1775293832337,-180.0,0.00012623,2]
[419690839,1775293832347,-420.0,0.00012623,2]
[419690840,1775293832357,-600.0,0.00012626,2]
[419690841,1775293832366,-250.0,0.00012626,2]
[419690842,1775293832375,-413.26808823,0.00012626,2]
[419690843,1775293832385,-600.0,0.00012637,2]
[419690844,1775293832394,-600.0,0.00012637,2]
[419690845,1775293832404,-250.0,0.00012637,2]
[419690846,1775293832413,-1680.0,0.00012641,2]
[419690847,1775293832422,-49524.62306678,0.00012999,2]
[419690848,1775293832442,-750.0,0.00012999,2]
[419690849,1775293832461,-250.7070206,0.00012999,2]
[419690850,1775293832472,-970.31793558,0.00012999,2]
[419690851,1775293832483,-4652.62,0.00012999,2]
[419690852,1775293832499,-621.94024213,0.00012999,2]
[419690854,1775293839868,-331.79488458,0.00012999,2]
[419690855,1775293839922,-2851.43843768,0.00012999,2]
[419690856,1775293839935,-509.65562623,0.00012999,2]
[419690857,1775293839997,-12544.22968703,0.00012999,2]
[419690858,1775293840006,-250.0,0.00013,2]
[419690859,1775293840015,-1809.16663198,0.00013,15]
[419690860,1775293840024,-500.0,0.00013111,2]
[419690861,1775293840034,-500.0,0.00013455,2]
[419690862,1775293840043,-1447.61,0.000135,2]
[419690863,1775293840052,-2000.0,0.00013675,2]
[419690864,1775293840062,-500.0,0.00013698,2]
[419690865,1775293840072,-500.0,0.00013698,2]
[419690866,1775293840082,-150.0,0.00013699,2]
[419690867,1775293840092,-177.57,0.00013743,2]
[419690868,1775293840102,-587.0,0.00013865,2]
[419690869,1775293840112,-640.0,0.00013905,2]
[419690870,1775293840124,-159.42,0.00013934,2]
[419690871,1775293840134,-150.0,0.00013973,2]
[419690872,1775293840144,-870.5,0.00014009,2]
[419690873,1775293840154,-883.66,0.00014114,2]
[419690874,1775293840163,-1500.0,0.00014114,2]
[419690875,1775293840173,-3240.0,0.0001433,2]
[419690876,1775293840183,-1731.72,0.00014357,2]
[419690877,1775293840192,-150.0,0.00014375,2]
[419690878,1775293840202,-503.01601482,0.00014523,2]
[419690879,1775293840212,-156.0,0.000147,2]
[419690880,1775293840221,-870.5,0.00014709,2]
[419690881,1775293840230,-331.79488458,0.00014798,2]
[419690882,1775293840240,-500.0,0.00014798,2]
[419690883,1775293840249,-179.35975644,0.00014798,2]
[419690884,1775293840258,-500.0,0.00014798,2]
[419690885,1775293840267,-500.0,0.00014798,2]
[419690886,1775293840276,-500.0,0.00014798,2]
[419690887,1775293840286,-500.0,0.00014798,2]
[419690888,1775293840295,-500.0,0.00014798,2]
[419690889,1775293840304,-500.0,0.00014798,2]
[419690890,1775293840314,-500.0,0.00014798,2]
[419690891,1775293840323,-500.0,0.00014798,2]
[419690892,1775293840333,-500.0,0.00014798,2]
[419690893,1775293840343,-500.0,0.00014798,2]
[419690894,1775293840352,-500.0,0.00014798,2]
[419690895,1775293840361,-500.0,0.00014798,2]
[419690896,1775293840370,-500.0,0.00014798,2]
[419690897,1775293840379,-500.0,0.00014798,2]
[419690898,1775293840388,-500.0,0.00014798,2]
[419690899,1775293840398,-500.0,0.00014798,2]
[419690900,1775293840407,-500.0,0.00014798,2]
[419690901,1775293840417,-500.0,0.00014798,2]
[419690902,1775293840426,-500.0,0.00014798,2]
[419690903,1775293840435,-500.0,0.00014798,2]
[419690904,1775293840444,-500.0,0.00014798,2]
[419690905,1775293840454,-500.0,0.00014798,2]
[419690906,1775293840463,-291.10102137,0.00014798,2]
[419690907,1775293840472,-500.0,0.00014798,2]
[419690908,1775293840481,-500.0,0.00014799,2]
[419690909,1775293840491,-500.0,0.00014799,2]
[419690910,1775293840502,-500.0,0.00014799,2]
[419690911,1775293840511,-500.0,0.00014799,2]
[419690912,1775293840522,-500.0,0.00014799,2]
[419690913,1775293840533,-500.0,0.00014799,2]
[419690914,1775293840543,-500.0,0.00014799,2]
[419690915,1775293840554,-500.0,0.00014799,2]
[419690916,1775293840565,-500.0,0.00014799,2]
[419690917,1775293840576,-500.0,0.00014799,2]
[419690918,1775293840589,-500.0,0.00014799,2]
[419690919,1775293840599,-500.0,0.00014799,2]
[419690920,1775293840609,-500.0,0.00014799,2]
[419690921,1775293840619,-500.0,0.00014799,2]
[419690922,1775293840629,-500.0,0.00014799,2]
[419690923,1775293840638,-500.0,0.00014799,2]
[419690924,1775293840648,-500.0,0.00014799,2]
[419690925,1775293840657,-500.0,0.00014799,2]
[419690926,1775293840666,-500.0,0.00014799,2]
[419690928,1775293840675,-500.0,0.00014799,2]
[419690929,1775293840685,-500.0,0.00014799,2]
[419690930,1775293840694,-500.0,0.00014799,2]
[419690931,1775293840703,-500.0,0.00014799,2]
[419690932,1775293840712,-174.61919141,0.00014799,2]
[419690933,1775293840722,-500.0,0.00014854,2]
[419690934,1775293840731,-289.5275225,0.00014908,2]
[419690935,1775293840740,-500.0,0.00014909,2]
[419690936,1775293840749,-500.0,0.00014964,2]
[419690937,1775293840758,-300.0,0.00015,2]
[419690938,1775293840767,-3044.58224996,0.00015,2]
[419690939,1775293840776,-500.0,0.00015019,2]
[419690940,1775293840785,-291.74,0.00015068,2]
[419690941,1775293840794,-500.0,0.00015074,2]
[419690942,1775293840804,-159.42,0.00015095,2]
[419690943,1775293840812,-500.0,0.00015129,2]
[419690944,1775293840822,-332.38601295,0.00015167,2]
[419690945,1775293840831,-500.0,0.00015184,2]
[419690946,1775293840840,-2000.0,0.00015194,2]
[419690947,1775293840849,-2000.0,0.000152,2]
[419690948,1775293840859,-823.0,0.00015228,2]
[419690949,1775293840868,-500.0,0.00015239,2]
[419690950,1775293840877,-500.0,0.00015294,2]
[419690951,1775293840887,-156.0,0.000153,2]
[419690952,1775293840896,-1517.64,0.000153,2]
[419690953,1775293840905,-181.08010149,0.00015347,2]
[419690954,1775293840914,-500.0,0.00015349,2]
[419690955,1775293840923,-2000.0,0.000154,2]
[419690956,1775293840933,-2000.0,0.000154,2]
[419690957,1775293840942,-2000.0,0.000154,2]
[419690958,1775293840951,-400.0,0.000154,5]
[419690959,1775293840961,-2000.0,0.000154,2]
[419690960,1775293840970,-2013.0,0.000154,2]
[419690961,1775293840980,-2000.0,0.000154,2]
[419690962,1775293840989,-512.53794019,0.000154,2]
[419690963,1775293840998,-870.5,0.0001541,2]
[419690964,1775293841008,-5888.0,0.00015463,2]
[419690965,1775293841019,-5888.0,0.00015477,2]
[419690966,1775293841029,-800.0,0.000155,5]
[419690967,1775293841039,-1231.35459603,0.000155,2]
[419690968,1775293841048,-5401.856,0.0001556,2]
[419690969,1775293841058,-296.786,0.0001556,2]
[419690970,1775293841069,-5888.0,0.00015597,2]
[419690971,1775293841078,-156.0,0.000156,2]
[419690972,1775293841089,-1300.0,0.000156,5]
[419690973,1775293841098,-855.35507685,0.00015634,2]
[419690974,1775293841108,-5888.0,0.00015644,2]
[419690975,1775293841117,-5888.0,0.00015654,2]
[419690976,1775293841127,-2500.0,0.00015681,2]
[419690977,1775293841138,-5888.0,0.00015683,2]
[419690978,1775293841148,-1700.0,0.000157,5]
[419690979,1775293841158,-194609.24030404,0.0001572,2]
[419690980,1775293841167,-5888.0,0.00015781,2]
[419690981,1775293841176,-500.0,0.00015787,4]
[419690982,1775293841186,-1072.04030549,0.00015799,5]
[419690983,1775293841196,-2200.0,0.000158,5]
[419690984,1775293841205,-2259.03257639,0.00015807,2]